[Event "FRA-ch Youth U14 2018"]
[Site "Agen"]
[Date "2018.04.22"]
[Round "9"]
[White "Nguyen, Thao Nhi"]
[Black "Tomasi, Elise"]
[Result "0-1"]
[ECO "C47"]
[WhiteElo "1861"]
[BlackElo "1689"]
[Annotator "NA RC"]
[PlyCount "78"]
[EventDate "2018.??.??"]
[EventType "swiss"]
[EventCountry "FRA"]
[TimeControl "5400+30"]

1. e4 {[%emt 0:00:00]} e5 {[%emt 0:00:15]} 2. Nf3 {[%emt 0:00:00]} Nc6 {[%emt 0:00:11]} 3. Nc3 {[%emt 0:00:00]} Nf6 {[%emt 0:00:56]} 4. d4 {[%emt 0:00:00]} Bb4 {[%emt 0:00:26]} 5. Nxe5 {[%emt 0:00:24]} O-O {[%emt 0:04:16]} 6. Nxc6 {[%emt 0:06:21]} bxc6 {[%emt 0:00:41]} 7. Bd3 {[%emt 0:04:06]} Re8 {[%emt 0:04:24]} 8. f3 {[%emt 0:04:55]} d5 {[%emt 0:04:47]} 9. e5 c5 {[%emt 0:00:30]} 10. O-O cxd4 {[%emt 0:00:30]} 11. exf6 dxc3 {[%emt 0:00:30]} 12. fxg7 Qf6 {[%emt 0:00:30]} 13. bxc3 Bxc3 {[%emt 0:00:30]} 14. Rb1 Qxg7 {[%emt 0:00:30]} 15. Bf4 Qd4+ {[%emt 0:00:30]} 16. Kh1 Qxf4 {[%emt 0:00:30]} 17. Bxh7+ Kxh7 {[%emt 0:00:30]} 18. Qd3+ Bf5 {[%emt 0:00:30]} 19. Qxc3 d4 {[%emt 0:00:30]} 20. Qc4 Kg7 {[%emt 0:00:30]} 21. Rbd1 Rh8 {[%emt 0:00:30]} 22. Qxd4+ Qxd4 {[%emt 0:00:30]} 23. Rxd4 Be6 {[%emt 0:00:30]} 24. a3 c5 {[%emt 0:00:30]} 25. Rd6 Rhd8 {[%emt 0:00:30]} 26. Rfd1 Rxd6 {[%emt 0:00:30]} 27. Rxd6 Rb8 {[%emt 0:00:30]} 28. h4 Rb1+ {[%emt 0:00:30]} 29. Kh2 Rc1 {[%emt 0:00:30]} 30. Rd2 c4 {[%emt 0:00:30]} 31. Re2 c3 {[%emt 0:00:30]} 32. a4 Bf5 {[%emt 0:00:30]} 33. Kg3 Rxc2 {[%emt 0:00:30]} 34. Kf2 Rxe2+ {[%emt 0:00:30]} 35. Kxe2 a5 {[%emt 0:00:30]} 36. Kd1 Bd3 {[%emt 0:00:30]} 37. g3 Kf6 {[%emt 0:00:30]} 38. Kc1 Ke5 {[%emt 0:00:30]} 39. Kd1 Kd4 {[%emt 0:00:30]} 0-1

[Event "FRA-ch Youth U14 2018"]
[Site "Agen"]
[Date "2018.04.22"]
[Round "9"]
[White "Ginovart, Camille"]
[Black "Sumarriva Paulin, Laura"]
[Result "1/2-1/2"]
[ECO "C02"]
[WhiteElo "1628"]
[BlackElo "1665"]
[Annotator "NA RC"]
[PlyCount "83"]
[EventDate "2018.??.??"]
[EventType "swiss"]
[EventCountry "FRA"]
[SourceTitle "playchess.com"]
[Source "ChessBase"]
[SourceQuality "1"]
[TimeControl "5400+30"]

1. e4 {[%emt 0:02:50]} e6 {[%emt 0:00:09]} 2. d4 {[%emt 0:00:12]} d5 {[%emt 0:00:07]} 3. e5 {[%emt 0:00:07]} c5 {[%emt 0:00:18]} 4. c3 {[%emt 0:00:06]} Bd7 {[%emt 0:00:19]} 5. Nf3 {[%emt 0:00:22]} a6 {[%emt 0:00:18]} 6. Bd3 {[%emt 0:00:12]} Nc6 {[%emt 0:00:57]} 7. O-O {[%emt 0:01:12]} cxd4 {[%emt 0:00:41]} 8. cxd4 {[%emt 0:00:00]} Qb6 {[%emt 0:01:22]} 9. Bc2 {[%emt 0:01:45]} Nb4 {[%emt 0:04:06]} 10. Bb3 {[%emt 0:02:08]} Bb5 {[%emt 0:05:10]} 11. Re1 {[%emt 0:01:19]} Nd3 {[%emt 0:00:35]} 12. Re3 {[%emt 0:00:37]} Nxc1 {[%emt 0:00:00]} 13. Qxc1 {[%emt 0:00:00]} Ne7 {[%emt 0:00:50]} 14. Qd2 {[%emt 0:03:10]} Bd7 {[%emt 0:06:12]} 15. Bc2 {[%emt 0:03:52]} Nc6 {[%emt 0:08:38]} 16. Nc3 {[%emt 0:03:48]} Rc8 {[%emt 0:08:38]} 17. Rb1 {[%emt 0:07:07]} Na5 {[%emt 0:02:14]} 18. Qd3 {[%emt 0:10:57]} Nc4 {[%emt 0:02:10]} 19. Re2 {[%emt 0:01:48]} Qa5 {[%emt 0:08:30]} 20. Bb3 {[%emt 0:24:41]} Nxb2 {[%emt 0:04:30]} 21. Rexb2 {[%emt 0:01:01]} Qxc3 {[%emt 0:02:32]} 22. Qd1 {[%emt 0:00:32]} Qa5 {[%emt 0:02:53]} 23. Bc2 {[%emt 0:01:53]} b5 {[%emt 0:02:03]} 24. Ng5 {[%emt 0:05:07]} Qd8 {[%emt 0:10:44]} 25. Nxh7 {[%emt 0:04:26]} Qh4 {[%emt 0:01:24]} 26. g3 {[%emt 0:03:49]} Qh3 {[%emt 0:04:02]} 27. Qf1 {[%emt 0:03:08]} Qxf1+ {[%emt 0:02:38]} 28. Rxf1 {[%emt 0:00:13]} Ba3 {[%emt 0:00:28]} 29. Rb3 {[%emt 0:01:48]} Rxc2 {[%emt 0:00:45]} 30. Rxa3 {[%emt 0:01:25]} Rxh7 {[%emt 0:00:16]} 31. Rxa6 {[%emt 0:00:25]} Rd2 {[%emt 0:02:56]} 32. Rc1 {[%emt 0:00:22]} Ke7 {[%emt 0:09:35]} 33. Ra8 {[%emt 0:01:47]} Rxd4 {[%emt 0:01:20]} 34. Rc7 {[%emt 0:01:09]} Rc4 {[%emt 0:00:45]} 35. Rb7 {[%emt 0:00:38]} Ra4 {[%emt 0:02:42]} 36. Rc8 {[%emt 0:00:28]} Rc4 {[%emt 0:05:28]} 37. Ra8 {[%emt 0:00:08]} Ra4 38. Rc8 Rxa2 39. Rcc7 g6 40. Rxd7+ Kf8 41. Rd8+ Kg7 42. Rdd7 1/2-1/2

[Event "FRA-ch Youth U14 2018"]
[Site "Agen"]
[Date "2018.04.22"]
[Round "9"]
[White "Barbotte, Jeanne"]
[Black "Bellahcene, Sofia"]
[Result "0-1"]
[ECO "B31"]
[WhiteElo "1556"]
[BlackElo "1701"]
[Annotator "NA RC"]
[PlyCount "94"]
[EventDate "2018.??.??"]
[EventType "swiss"]
[EventCountry "FRA"]
[SourceTitle "playchess.com"]
[Source "ChessBase"]
[SourceQuality "1"]
[TimeControl "5400+30"]

1. e4 {[%emt 0:00:00]} c5 {[%emt 0:00:13]} 2. Nf3 {[%emt 0:00:00]} Nc6 {[%emt 0:00:14]} 3. Bb5 {[%emt 0:00:00]} g6 {[%emt 0:00:41]} 4. O-O {[%emt 0:00:29]} Bg7 {[%emt 0:00:09]} 5. c3 {[%emt 0:00:18]} Nf6 {[%emt 0:02:42]} 6. e5 {[%emt 0:03:48]} Nd5 {[%emt 0:00:15]} 7. d4 {[%emt 0:00:23]} cxd4 {[%emt 0:00:46]} 8. cxd4 {[%emt 0:00:07]} O-O {[%emt 0:00:46]} 9. Nc3 {[%emt 0:00:34]} Nc7 {[%emt 0:02:39]} 10. Bxc6 {[%emt 0:05:33]} dxc6 {[%emt 0:00:18]} 11. Bf4 {[%emt 0:07:22]} Bg4 {[%emt 0:02:18]} 12. h3 {[%emt 0:07:53]} Bxf3 {[%emt 0:01:51]} 13. Qxf3 {[%emt 0:00:06]} Qxd4 {[%emt 0:00:44]} 14. Rad1 {[%emt 0:00:07]} Qb4 {[%emt 0:01:12]} 15. Rd7 {[%emt 0:04:18]} Ne6 {[%emt 0:01:21]} 16. Bd2 {[%emt 0:08:54]} Qb6 {[%emt 0:04:13]} 17. Na4 {[%emt 0:01:24]} Qa6 {[%emt 0:00:45]} 18. Nc3 {[%emt 0:09:04]} Rad8 {[%emt 0:01:47]} 19. Rxe7 {[%emt 0:14:16]} Rxd2 {[%emt 0:08:05]} 20. Ne4 {[%emt 0:00:08]} Rd3 {[%emt 0:02:24]} 21. Qe2 {[%emt 0:03:42]} Bxe5 {[%emt 0:05:18]} 22. Rxe6 {[%emt 0:00:16]} fxe6 {[%emt 0:08:28]} 23. Nc5 {[%emt 0:00:09]} Qxa2 {[%emt 0:01:17]} 24. Nxd3 {[%emt 0:01:08]} Bd4 {[%emt 0:01:37]} 25. Qe4 {[%emt 0:04:19]} Qd5 {[%emt 0:01:55]} 26. Qg4 {[%emt 0:02:24]} e5 {[%emt 0:02:23]} 27. Rd1 {[%emt 0:05:08]} c5 {[%emt 0:03:05]} 28. Kh1 {[%emt 0:04:55]} a5 {[%emt 0:02:11]} 29. h4 {[%emt 0:04:56]} Rf5 {[%emt 0:05:58]} 30. f3 {[%emt 0:04:28]} Qb3 {[%emt 0:01:32]} 31. Rd2 {[%emt 0:00:57]} Be3 {[%emt 0:00:22]} 32. Nxe5 {[%emt 0:02:02]} Rxe5 {[%emt 0:06:07]} 33. Rd8+ {[%emt 0:00:32]} Kf7 {[%emt 0:00:56]} 34. Qd7+ {[%emt 0:01:29]} Re7 {[%emt 0:00:18]} 35. Qc8 {[%emt 0:00:12]} Bh6 {[%emt 0:00:49]} 36. Rh8 {[%emt 0:04:33]} Qd1+ {[%emt 0:00:55]} 37. Kh2 {[%emt 0:00:04]} Qd6+ {[%emt 0:00:41]} 38. g3 {[%emt 0:01:10]} Re2+ {[%emt 0:01:51]} 39. Kh3 {[%emt 0:00:06]} Qe6+ {[%emt 0:00:14]} 40. Qxe6+ {[%emt 0:00:06]} Rxe6 {[%emt 0:00:09]} 41. Rxh7+ {[%emt 0:00:10]} Bg7 {[%emt 0:00:05]} 42. h5 {[%emt 0:00:14]} Kg8 {[%emt 0:00:33]} 43. hxg6 {[%emt 0:00:12]} Rxg6 {[%emt 0:00:09]} 44. Rh5 {[%emt 0:00:17]} Rh6 {[%emt 0:00:19]} 45. Rxh6 {[%emt 0:00:34]} Bxh6 {[%emt 0:00:05]} 46. f4 {[%emt 0:00:23]} a4 {[%emt 0:00:09]} 47. Kg2 {[%emt 0:00:08]} Bg7 {[%emt 0:00:06]} 0-1